Cogmind - Beta 9.3 *** ADVENTURER MODE // 2019.12.24 @ 21:07:41 Player: lcbb_tuk Result: Destroyed by G-34 Mercenary with Small Laser Performance ------------- Evolutions (1) 500 Regions Visited (2) 400 Robots Destroyed (42) 210 Value Destroyed (1068) 1068 Prototype IDs (1) 20 Alien Tech Used (0) 0 Bonus (0) 0 TOTAL SCORE: 2198 Bonus ------- None Cogmind --------- Core Integrity 0/400 Matter 286/300 Energy 260/265 System Corruption 0% Temperature Cool (538) Movement Walking (150) Ox1 Location -9/Materials Parts ------- > --- POWER (2) -------- Reinforced Ion Engine > --- PROPULSION (3) --- Improved Aluminum Leg Improved Aluminum Leg > --- UTILITY (2) ------ Small Storage Unit Small Storage Unit > --- WEAPON (2) ------- Light Assault Rifle Mace > --- INVENTORY (8) ---- Advanced Beam Cannon Advanced Beam Cannon Peak State ------------ > --- POWER ------------ Ion Engine Reinforced Ion Engine > --- PROPULSION ------- Improved Aluminum Leg Improved Aluminum Leg Improved Aluminum Leg > --- UTILITY ---------- Small Storage Unit Small Storage Unit > --- WEAPON ----------- Particle Gun Advanced Beam Cannon > --- INVENTORY -------- Heat Sink Small Matter Pod Light Armor Plating Advanced Beam Cannon Light Assault Rifle Autogun Autogun [Rating: 17] Favorites ----------- Power Ion Engine Engine Ion Engine Propulsion Improved Aluminum Leg Treads Light Treads Leg Improved Aluminum Leg Wheel Wheel Hover Unit Backup Propulsion I Utility Small Storage Unit Storage Small Storage Unit Weapon Assault Rifle Energy Gun Medium Laser Energy Cannon Advanced Beam Cannon Ballistic Gun Assault Rifle Impact Weapon Mace Build | -11 -10 -9 ------- Run | Scr Mat Mat Slots Evolved 2 | . . 2 Power 1 | . . 1 Propulsion 1 | . . 1 Utility . | . . . Weapon . | . . . Parts Attached 37 | 6 2 29 Power 7 | 1 1 5 Engine 7 | 1 1 5 Core . | . . . Reactor . | . . . Propulsion 12 | 2 . 10 Treads 3 | 2 . 1 Leg 6 | . . 6 Wheel 2 | . . 2 Hover 1 | . . 1 Flight . | . . . Utility 2 | 1 1 . Device . | . . . Storage 2 | 1 1 . Processor . | . . . Hackware . | . . . Protection . | . . . Artifact . | . . . Weapon 16 | 2 . 14 Energy Gun 3 | 1 . 2 Energy Cannon 5 | . . 5 Ballistic Gun 7 | 1 . 6 Ballistic Cannon . | . . . Launcher . | . . . Special Weapon . | . . . Impact Weapon 1 | . . 1 Slashing Weapon . | . . . Piercing Weapon . | . . . Special Melee Weapon . | . . . Unidentified Prototypes 1 | . . 1 Parts Lost 12 | . . 12 Power 4 | . . 4 Propulsion 4 | . . 4 Utility . | . . . Weapon 4 | . . 4 Highest Loss Streak 8 | . . 8 Average Slot Usage (%) 87 | . 85 88 Engine 17 | . 14 18 Treads 6 | . 16 . Leg 14 | . . 22 Wheel 1 | . . 2 Hover 3 | . 7 . Storage 20 | . 18 22 Energy Gun 8 | . 14 5 Energy Cannon 4 | . . 7 Ballistic Gun 10 | . 14 7 Naked Turns . | . . . Heaviest Build 31 | 11 15 31 Greatest Support 40 | 40 40 39 Greatest Overweight (x) 3 | . 2 3 Average Overweight (x) . | . . . Largest Inventory Capacity 8 | 6 8 8 Average Capacity 7 | 5 6 8 Most Carried 8 | 4 6 8 Average Carried 4 | 2 5 3 Final Capacity 8 | 6 8 8 Final Carried 5 | 3 5 2 Class Distribution -------------------- 76% | Mutant 23% | Scavenger-Mutant Dominant Class ---------------- Mutant | -10/Materials Mutant | -9/Materials Resources | -11 -10 -9 ----------- Run | Scr Mat Mat Matter Collected 936 | 206 163 567 Remotely . | . . . Salvage Created 1381 | . 264 1117 Parts 90 | . 20 70 Haulers Intercepted . | . . . Recyclers Shooed . | . . . Parts Field Recycled . | . . . Retrieved Matter . | . . . Parts Self-Destructed . | . . . Prevented . | . . . Kills | -11 -10 -9 ------- Run | Scr Mat Mat Combat Hostiles Destroyed 38 | . 7 31 Guns 29 | . 7 22 Cannons 9 | . . 9 Classes Destroyed 7 | . 3 4 Recycler 1 | . 1 . Operator 1 | . . 1 Watcher 2 | . . 2 Swarmer 14 | . 3 11 Grunt 18 | . 4 14 Brawler 2 | . . 2 Sentry 4 | . . 4 Best Kill Streak 8 | . 3 8 Combat Bots Only 8 | . 3 8 Max Kills in Single Turn 2 | . 1 2 Gunslinging 1 | . . 1 Exploded . | . . . Melee . | . . . Uniques/NPCs Destroyed . | . . . Combat | -11 -10 -9 -------- Run | Scr Mat Mat Damage Taken 2023 | . 166 1857 Core 433 | . 31 402 Absorbed by Shields . | . . . Core Remaining (%) 93 | 100 87 . Volleys Fired 148 | . 13 135 Largest 2 | . 2 2 Hottest 136 | . 70 136 Shots Fired 229 | . 23 206 Gun 179 | . 23 156 Cannon 50 | . . 50 Launcher . | . . . Special . | . . . Kinetic 139 | . 13 126 Thermal 90 | . 10 80 Explosive . | . . . Electromagnetic . | . . . Robot Hit Streak 27 | . 8 27 Robot Miss Streak 4 | . 1 4 Penetration Max . | . . . Secondary Targets 5 | . . 5 Max Gunslinging Chain 1 | . . 1 Shots Hit Robots 175 | . 18 157 Core Hits 61 | . 12 49 Critical Hits 11 | . . 11 Critical Kills 4 | . . 4 Critical Parts Destroyed 7 | . . 7 Melee Attacks 3 | . . 3 Impact 3 | . . 3 Slashing . | . . . Piercing . | . . . Sneak Attacks 1 | . . 1 Combat Hostiles . | . . . Follow-up Attacks . | . . . Damage Inflicted 2721 | . 226 2495 Guns 1876 | . 224 1652 Cannons 721 | . . 721 Explosions . | . . . Melee 92 | . . 92 Ramming 32 | . 2 30 Kinetic 1464 | . 111 1353 Thermal 1133 | . 113 1020 Explosive . | . . . Electromagnetic . | . . . Impact 92 | . . 92 Slashing . | . . . Piercing . | . . . Highest Corruption . | . . . Average Corruption . | . . . Corruption Purged . | . . . Overload Shots . | . . . Overflow Damage 3 | . . 3 Projectiles 3 | . . 3 Explosions . | . . . Melee . | . . . Knockbacks 2 | . . 2 Impact 2 | . . 2 Kinetic . | . . . Secondary . | . . . Self-Inflicted Damage 8 | . 1 7 Shots . | . . . Rammed 3 | . 1 2 Targets Rammed 8 | . 1 7 Kicked 5 | . . 5 Crushed . | . . . Highest Temperature 670 | . 90 670 Average Temperature 170 | . 35 182 Received Heat Transfer 927 | . 48 879 Effects 48 | . . 48 Shutdowns 18 | . . 18 Energy Bleed 3 | . . 3 Interference 8 | . . 8 Matter Decay 4 | . . 4 Short Circuit 2 | . . 2 Damage (minor) 2 | . . 2 Damage (major) 9 | . . 9 Damage (core) 2 | . . 2 Siege Activations . | . . . Robots Corrupted . | . . . Combat Hostiles . | . . . Parts Fried . | . . . Impact Corruptions . | . . . Robots Melted . | . . . Combat Hostiles . | . . . Parts Melted 2 | . 1 1 Heat Transferred 2382 | . 333 2049 Parts Sabotaged . | . . . Parts Stolen . | . . . Parts Stripped . | . . . Power Chain Reactions . | . . . Missiles Intercepted . | . . . Alert | -11 -10 -9 ------- Run | Scr Mat Mat Peak Influence 336 | . 128 336 Average Influence 128 | . 50 179 Maximum Alert Level 1 | . . 1 Low Security (%) 76 | 100 100 61 Level 1 23 | . . 38 Level 2 . | . . . Level 3 . | . . . Level 4 . | . . . Level 5 . | . . . High Security . | . . . Max Security . | . . . Squads Dispatched 12 | . 4 8 Investigation 9 | . 4 5 Extermination . | . . . Reinforcement 3 | . . 3 Assault . | . . . Garrison . | . . . Intercept . | . . . Construction Impeded . | . . . Haulers Reinforced . | . . . Stealth | -11 -10 -9 --------- Run | Scr Mat Mat Distress Signals 3 | . . 3 Communications Jammed . | . . . Distress Signals . | . . . Times Spotted 76 | . 8 68 Peak Tracking Total 8 | . 4 8 Tactical Retreats 16 | . . 16 Traps | -11 -10 -9 ------- Run | Scr Mat Mat Traps Triggered 1 | . . 1 Indirectly . | . . . Trap Hack Attempts . | . . . Triggered . | . . . Disarmed . | . . . Reprogrammed . | . . . Reused . | . . . Traps Extracted . | . . . Installed . | . . . Triggered . | . . . Machines | -11 -10 -9 ---------- Run | Scr Mat Mat Machines Disabled 1 | . . 1 Max in Single Turn 1 | . . 1 Machines Sabotaged . | . . . Garrisons Compromised . | . . . Overloaded Fab Kills . | . . . Fab Network Shutdowns . | . . . Hacking | -11 -10 -9 --------- Run | Scr Mat Mat Machines Accessed 10 | . 5 5 Terminals 7 | . 3 4 Fabricators . | . . . Repair Stations 1 | . 1 . Recycling Units 2 | . 1 1 Scanalyzers . | . . . Garrison Access . | . . . Total Hacks 53 | . 29 24 Successful 34 | . 18 16 Failed 19 | . 11 8 Catastrophic 2 | . 2 . Database Lockouts . | . . . Manual . | . . . Terminals 33 | . 18 15 Fabricators . | . . . Repair Stations 8 | . 8 . Recycling Units 12 | . 3 9 Scanalyzers . | . . . Garrison Access . | . . . Terminal Hacks 18 | . 10 8 Record 10 | . 5 5 Terminal Index 1 | . . 1 Locate Traps 1 | . . 1 Dispatch Records 1 | . 1 . Surveillance Status 1 | . 1 . Assault Status 1 | . 1 . Hauler Manifests 1 | . 1 . Registered Components 1 | . . 1 Zone Layout 1 | . 1 . Fabricator Hacks . | . . . Repair Station Hacks 6 | . 6 . Scan Component 3 | . 3 . Repair 2 | . 2 . Refit 1 | . 1 . Recycling Unit Hacks 10 | . 2 8 Recycle Component 1 | . . 1 Process 2 | . 1 1 Report Inventory 3 | . 1 2 Retrieve Matter 2 | . . 2 Retrieve Components 2 | . . 2 Scanalyzer . | . . . Garrison Access Hacks . | . . . Unauthorized Hacks . | . . . Terminals . | . . . Fabricators . | . . . Repair Stations . | . . . Recycling Units . | . . . Scanalyzers . | . . . Garrison Access . | . . . Data Cores Recovered . | . . . Used . | . . . Hacking Detections 10 | . 5 5 Full Trace Events 10 | . 5 5 Feedback Events . | . . . Feedback Blocked . | . . . Robot Schematics Acquired . | . . . Robots Built . | . . . Matter . | . . . Time . | . . . Total Robot Build Rating . | . . . Part Schematics Acquired . | . . . Parts Built . | . . . Matter . | . . . Time . | . . . Total Part Build Rating . | . . . Parts Repaired 2 | . 2 . Time 62 | . 62 . Parts Recycled 1 | . . 1 Recycled Matter 156 | . 4 152 Retrieved Matter 152 | . . 152 Retrieved Components 1 | . . 1 Parts Scanalyzed . | . . . Part Schematics Acquired . | . . . Parts Damaged . | . . . Bothacking | -11 -10 -9 ------------ Run | Scr Mat Mat Used RIF Installer . | . . . Robots Hacked . | . . . Non-combat . | . . . Combat . | . . . Robot Hacks Applied . | . . . Relay Couplers Released . | . . . Robots Rewired . | . . . Allies Hacked . | . . . Hacks Repelled . | . . . Allies | -11 -10 -9 -------- Run | Scr Mat Mat Total Allies . | . . . Largest Group . | . . . Highest-Rated Group . | . . . Highest-Rated Ally . | . . . Total Orders . | . . . Ally Attacks . | . . . Total Damage . | . . . Kills . | . . . Allies Corrupted . | . . . Allies Melted . | . . . Intel | -11 -10 -9 ------- Run | Scr Mat Mat Robot Analysis Total . | . . . Derelict Logs Recovered . | . . . Drone Launches . | . . . Drone Recoveries . | . . . Exploration | -11 -10 -9 ------------- Run | Scr Mat Mat Turns Passed 2334 | 80 817 1437 Spaces Moved 1230 | 49 417 764 Core 13 | 11 . 2 Treads 277 | 38 217 22 Legs 672 | . . 672 Wheels 49 | . . 49 Hover 219 | . 200 19 Flight . | . . . Fastest Speed 50 | 50 160 80 Average Speed 150 | 135 184 132 Slowest Speed 330 | 160 240 330 Overloaded Moves . | . . . Propulsion Burnouts . | . . . Robots Hopped . | . . . Cave-ins Triggered . | . . . Exploration Rate (%) 35 | 4 57 45 Regions Visited 2 Branch Regions . Pre-discovered Areas . | . . . Known Exits Taken . | . . . Unknown Exits Taken 2 | 1 1 . Scrap Searched . | . . . Spaces Dug . | . . . Terrain Destroyed . | . . . Melee . | . . . Projectile . | . . . AOE . | . . . Actions | -11 -10 -9 --------- Run | Scr Mat Mat Total 1501 | 63 441 997 Wait 20 | . 2 18 Move 1228 | 48 416 764 Hop . | . . . Pick Up 39 | 9 4 26 Fast Attach . | . . . Attach 27 | 6 1 20 Detach 1 | . 1 . Swap 10 | . 1 9 Drop 17 | . 2 15 Fire 148 | . 13 135 Melee 3 | . . 3 Ram 1 | . 1 . Kick 7 | . . 7 Crush . | . . . Escape Stasis . | . . . Rewire . | . . . Trap . | . . . Miscellaneous . | . . . Route ------- -11/Scrapyard -10/Materials (discovered 2 exits: *Mat x2) -9/Materials (discovered 2 exits: [*Mat] / [*Min]) History --------- Turn | Location | Event 18 | -11/Scrapyard | Discovered new exit (range 15) 81 | -11/Scrapyard | Entered Materials 310 | -10/Materials | Build established: Mutant 382 | -10/Materials | Discovered new exit (range 15) 464 | -10/Materials | Repaired Broken Lgt. Ion Engine 490 | -10/Materials | Repaired Lgt. Treads? 597 | -10/Materials | Discovered new exit (range 11) 898 | -10/Materials | Entered another Materials area 898 | -9/Materials | Evolved 2 slots: Power x1, Propulsion x1 1056 | -9/Materials | Destroyed 8 combat bots 1108 | -9/Materials | Lost 8 parts (3p2n3w) 1209 | -9/Materials | Core integrity fell below 50% 1571 | -9/Materials | Discovered new exit (range 16) 1634 | -9/Materials | Build established: Scavenger-Mutant 2016 | -9/Materials | Build established: Mutant 2099 | -9/Materials | Core integrity fell below 20% 2166 | -9/Materials | Discovered new exit (range 7) 2335 | -9/Materials | Destroyed by G-34 Mercenary with Small Laser Last Messages --------------- G-34 Mercenary unfolds itself. Overheating: Matter decay (-33). K-01 Serf collects debris. Power failure, Rnf. Ion Engine shutdown. Overheating: Energy bleed (-43). W-16 Scout distress signal alerts nearby ally. Power failure, Ion Engine shutdown. Overheating: Imp. Aluminum Leg damaged (-15). Overheating: Broken Imp. Aluminum Leg damaged (-42). Overheating: Sml. Storage Unit damaged (-20). K-01 Serf collects debris. Overheating: Sml. Storage Unit damaged (-16). Overheating: Imp. Aluminum Leg damaged (-2). Overheating: Sml. Storage Unit damaged (-16). Ion Engine destroyed. K-01 Serf collects debris. Overheating: Core damaged (-44). Overheating: Sml. Storage Unit damaged (-2). Broken Imp. Aluminum Leg destroyed. K-01 Serf cleans the Terminal. Map ----- +----------------------------------------------------+ | # #?????????????????????????????????????? | | # ""T"" #?????????????????????????????????????? | | ## """"" #?????????????????????????????????????? | | ############?????????????????????????????????????? | | #????????????????????????????????????????????????? | | #????????????????????????????????????????????????? | | ############?????????????????????????????????????? | | ## #???????????????????? ????????????????? | | ## #???????????????????? ????????????????? | | # #???????????????????? ????????????????? | | # #???????????????????# #???????????????? | | + #????????? ??????### ###?????????????? | | # #????????? ??????# #?????????????? | | # #????????? ??????# ! #?????????????? | | ## #?????????!!??????+ %= +?????????????? | | ############??????????/ ?????# #?????????????? | | #?????????????????????/ ?????? ??????????????? | | #############????????? ??????# #??????????????? | | #??????? ??????# #??????????????? | | +???????#/??????# #??????????????? | | "" #???????# ??????# #??????????????? | | "" ######+?????????#u?????## % ##?????????????? | | T" ""#????????????## ###### #?????????????? | | "" T"#????????????#^w %gk #?????????????? | | "" ""#????????????# ^% %g T #?????????????? | | ###????????????#^ @ kk #?????????????? | | ""#????????????#ggg##### #?????????????? | | T"#???????????## ^%##??#######?????????????? | | ""#???????????# % #??????????????????????? | | ###???????????# #??????????????????????? | | """" #?????????????# T #??????????????????????? | | """" #?????????????# r #??????????????????????? | | """" #?????????????# #??????????????????????? | | #?????????????## ##??????????????????????? | | #??????????????# #???????????????????????? | | +??????????????# #???????????????????????? | | #??????????????# #???????????????????????? | | = #???????????#### ##??????????????????????? | | / #???????????#""" #??????????????????????? | | / #???????????#" #??????????????????????? | | #???????????#"| #??????????????????????? | | #######???????????#"" < #??????????????????????? | | ??????????????????#"! #??????????????????????? | | ??????????????????#" #??????????????????????? | | ??????????????????#""" #??????????????????????? | | """?#??????########### ##??????????????????????? | | #??????# # #???????????????????????? | | """ ???????# """%/ #???????????????????????? | | """ ???????# "Y" # #???????????????????????? | | """????????# % # #######?????????????????? | +----------------------------------------------------+ Best States ------------- Heat Dissipation 28 Energy Generation 17 Energy Capacity 415 Matter Stores 300 Matter Capacity 300 Sight Range 16 Terrain Scan Density 10 Resistance: KI 20 Resistance: TH 20 Resistance: EX 20 Resistance: EM 20 Resistance: I 20 Resistance: S 20 Resistance: P 20 Evasion (%) 50 Recoil Reduction 2 Offensive Hacking 10 Item Schematics ----------------- None Robot Schematics ------------------ None Fabricated ------------ Nothing Alien Tech Used ----------------- None Achievements -------------- None Challenges ------------ None Game ------ Seed AngularHoverMagmablaster Manual? 0 Play Time 00:27:02 Cumulative 6.4 hours Start 2019.12.24 @ 20:42:05 End 2019.12.24 @ 21:07:41 Sessions 1 Manual Loads 0 Difficulty Adventurer Special Mode None Game No. 9 Rogue 0 Adventurer 9 Explorer 0 Win Type - Total 0 Types 0/0/0/0/0/0/0 Lore% 16 Gallery% 8 Achievement% 9 Wizard Run 0 Options --------- ASCII 0 Keyboard 1 Movement Numpad Keybinds 0 Fullscreen 1 Font 12/Fuzzy Map View 83x54 Tactical HUD 0 Map Filters NONE Filters NONE Steam 1 RUN: 69ece93c-fae9-4564-b09b-c284a2a982b9